{"text_format":"2","workbook":"xlsx","n_sheets":1,"sheets":["Feuil1"],"not_rendered":{"charts":0,"images":0,"macros":0,"external_links":0,"defined_names":0,"comments":0,"pivot_tables":0},"unopened":[],"bounds":{"document_bytes":16777216,"sheet_cells":100000,"run_cost":"one","rows_first":2000,"rows_last":500,"rows_between":2000,"halvings":0,"cell_chars":16384,"cell_head_chars":4096},"cells_cut":0,"cells_raw":0,"read":"whole","date_system":"1900"}

{"sheet":"Feuil1","index":0,"n_rows":129,"n_cols":27,"rows_kept":129,"cut":false,"hidden":false,"merged":[[1,0,1,4],[2,0,3,4],[2,6,2,15],[2,17,2,26],[11,6,11,15],[11,17,11,26],[20,17,20,26],[116,0,117,4],[122,0,123,4],[126,0,127,4],[20,6,20,15],[22,0,23,4],[42,0,43,4],[62,0,63,4],[82,0,83,4],[102,0,103,4],[106,0,107,4]]}
[]
["Coupe FLA du FOOT à 11 Weekend 2025-2026"]
["1ère journée -  Samedi 20/09 au dimanche 21/09 ",{"$nulls":5},"Poule A",{"$nulls":10},"Poule  D"]
[{"$nulls":6},"Team ","Points","J","G","N","P","Bp","Bc","+/-","Forfait ",null,"Team ","Points","J","G","N","P","Bp","Bc","+/-","Forfait "]
[null,"FC LAWYERS ","3-1","ASIP FC ","Samedi 20/09 au Parc de Choisy Nord (Terrain n°2) à 13h00",null,"FANTASISTA A",14.0,4.0,3.0,1.0,0.0,19.0,5.0,{"$f":"+M5-N5","v":14},null,null,"HOVERLA ",14.0,4.0,3.0,1.0,0.0,17.0,7.0,{"$f":"+X5-Y5","v":10}]
[null,"NDL BON CONSEIL","7-1","FC INTERNATIONALE 75","Samedi 20/09 au Stade Emile Antoine à 19h00",null,"FC SAVIGNAC",11.0,4.0,2.0,1.0,1.0,21.0,9.0,12,null,null,"NEVER ELEVEN FC",14.0,4.0,3.0,1.0,0.0,20.0,9.0,11]
[null,"DELOITTE FC","4-1","BM BOCK FC","Samedi 20/09 au Parc du Tremblay (Terrain n°9) à 09h30",null,"FC LAWYERS",11.0,4.0,2.0,1.0,1.0,8.0,8.0,0,null,null,"FC IFLISSEN A",13.0,4.0,3.0,0.0,1.0,19.0,7.0,12]
[null,"EFCAP","0F-3","AC JUNIA PARIS A","Samedi 20/09 au Stade Jules Noel à 11h00",null,"ASIP FC ",10.0,4.0,2.0,0.0,2.0,7.0,10.0,-3,null,null,"LE TIR ASCBB ( FC BATIGNOLLAIS)",10.0,4.0,2.0,0.0,2.0,11.0,10.0,1]
[null,"RENAISANCE CLUB PARIS","1-3","LE TIR ASCBB B ","Dimanche 21/09 au Parc du Tremblay (Terrain n°8) à 09h30",null,"BDM FC B",8.0,4.0,1.0,1.0,2.0,9.0,14.0,-5,null,null,"THE BOWLER",4.0,4.0,0.0,0.0,4.0,6.0,21.0,-15]
[null,"PHOENIX","0-3","PARIS RED CROC'DILS","Dimanche 21/09 au Stade Jules Noel à 15h00",null,"ATHLETIC RUN 974",4.0,4.0,0.0,0.0,4.0,7.0,25.0,-18,null,null,"ASSOCIATION N.A.S.",3.0,4.0,0.0,0.0,4.0,1.0,20.0,-19,1.0]
[null,"VILLE 190 ","1-2","LE TIR ASCBB A","Dimanche 21/09 au Parc du Tremblay (Terrain n°9) à 15h00"]
[null,"FC IFLISSEN A","5-0","ASSOCIATION N.A.S.","Dimanche 21/09 au Parc de Choisy Sud (Terrain n°21) à 13h00",null,"Poule B",{"$nulls":10},"Poule  E"]
[null,"BDM FC B","2-7","FC SAVIGNAC","Dimanche 21/09 au Parc du Tremblay (Terrain n°6) à 13h00",null,"Team ","Points","J","G","N","P","Bp","Bc","+/-","Forfait ",null,"Team ","Points","J","G","N","P","Bp","Bc","+/-","Forfait "]
[null,"FANTASISTA A","8-1","ATHLETIC RUN 974","Dimanche 21/09 au Stade Suzanne Lenglen (Terrain n°1) à 11h00",null,"DELOITTE FC",12.0,4.0,2.0,2.0,0.0,21.0,6.0,{"$f":"+M14-N14","v":15},null,null,"PANAM PIRATES FC ",14.0,4.0,3.0,1.0,0.0,10.0,5.0,{"$f":"+X14-Y14","v":5}]
[null,"TACTIC FC","2-1","FC PELOTA","Dimanche 21/09 au Stade Maryse Hilsz à 11h00",null,"FRIENDS FUN FC A",10.0,4.0,2.0,1.0,1.0,16.0,7.0,9,1.0,null,"RC BALARD",13.0,4.0,3.0,0.0,1.0,19.0,7.0,12]
[null,"AVENIR DE VILLEJUST","1-7","FRIENDS FUN FC A","Dimanche 21/09 au Stade de la Pourpadière à 13h00",null,"FC PELOTA",10.0,4.0,2.0,0.0,2.0,8.0,17.0,-9,null,null,"US COSA",11.0,4.0,2.0,1.0,1.0,18.0,14.0,4]
[null,"NEVER ELEVEN FC","2-1","LE TIR ASCBB ( FC BATIGNOLLAIS)","Dimanche 21/09 au Stade Paul Faber à 09h00",null,"AVENIR DE VILLEJUST",11.0,4.0,2.0,1.0,1.0,11.0,12.0,-1,null,null,"CHARENTON FC",9.0,4.0,1.0,2.0,1.0,6.0,8.0,-2]
[null,"THE BOWLER","1-3","HOVERLA ","Dimanche 21/09 au Parc de Bobigny (Terrain n°2) à 11h00",null,"BM BOCK FC",7.0,4.0,1.0,0.0,3.0,12.0,16.0,-4,null,null,"LE TIR ASCBB B",7.0,4.0,1.0,0.0,3.0,7.0,12.0,-5]
[null,"CHARENTON FC ","1-1","PANAM PIRATES FC ","Dimanche 21/09 au Parc du Tremblay (Terrain n°6) à 15h00",null,"TACTIC FC",7.0,4.0,1.0,0.0,3.0,8.0,18.0,-10,null,null,"RENAISANCE CLUB PARIS",4.0,4.0,0.0,0.0,4.0,3.0,17.0,-14]
[null,"RC BALARD","10-1","US COSA","Dimanche 21/09 au Stade Suzanne Lenglen (Terrain n°2) à 09h00"]
[null,"FC GADAA","2-6","AZTECAS PARIS A","Dimanche 21/09 au Stade de la Tour aux Parachutes à 13h00",null,"Poule  C",{"$nulls":10},"Poule F"]
[null,"TOHO FC","3-2","PONTS ANCIENS FOOTEUX A","Dimanche 21/09 au Stade Jules Noel à 10h30",null,"Team ","Points","J","G","N","P","Bp","Bc","+/-","Forfait ",null,"Team ","Points","J","G","N","P","Bp","Bc","+/-","Forfait "]
["2ème journée -   Samedi 27/09 au dimanche 28/09 ",{"$nulls":5},"AC JUNIA PARIS A",14.0,4.0,3.0,1.0,0.0,19.0,2.0,{"$f":"+M23-N23","v":17},null,null,"AZTECAS PARIS A",14.0,4.0,3.0,1.0,0.0,19.0,6.0,{"$f":"+X23-Y23","v":13}]
[{"$nulls":6},"EFCAP",12.0,4.0,3.0,0.0,1.0,15.0,8.0,7,1.0,null,"NDL BON CONSEIL",14.0,4.0,3.0,1.0,0.0,14.0,4.0,10]
[null,"LE TIR ASCBB ( FC BATIGNOLLAIS) ","3-5","FC IFLISSEN A","Samedi 27/09 au Stade Ile de Puteaux à 11h00",null,"LE TIR ASCBB A",11.0,4.0,2.0,1.0,1.0,13.0,8.0,5,null,null,"PONTS ANCIENS FOOTEUX A",10.0,4.0,2.0,0.0,2.0,9.0,7.0,2]
[null,"PARIS RED CROC'DILS","2-10","VILLE 190","Dimanche 28/09 au Stade Paul Faber à 09h00",null,"VILLE 190",10.0,4.0,2.0,0.0,2.0,19.0,13.0,6,null,null,"TOHO FC",10.0,4.0,2.0,0.0,2.0,7.0,11.0,-4]
[null,"ASIP FC ","3-2","BDM FC B","Dimanche 28/09 au Parc de Choisy Nord (Terrain n°2) à 13h00",null,"PARIS RED CROC'DILS",7.0,4.0,1.0,0.0,3.0,7.0,26.0,-19,null,null,"FC GADAA",7.0,4.0,1.0,0.0,3.0,8.0,13.0,-5]
[null,"FC SAVIGNAC","12-3","ATHLETIC RUN 974","Dimanche 28/09 au Stade de la Tour aux Parachutes à 11h00",null,"PHOENIX",4.0,4.0,0.0,0.0,4.0,5.0,21.0,-16,null,null,"FC INTERNATIONALE 75",4.0,4.0,0.0,0.0,4.0,5.0,21.0,-16]
[null,"FANTASISTA A","4-1","FC LAWYERS","Dimanche 28/09 au Stade Suzanne Lenglen (Terrain n°1) à 11h00"]
[null,"FC PELOTA","3-0F","FRIENDS FUN FC A","Dimanche 28/09 au Parc de Bobigny (Terrain n°5) à 15h00"]
[null,"BM BOCK FC","7-4","TACTIC FC","Dimanche 28/09 au Parc du Tremblay (Terrain n°8) à 09h30"]
[null,"AVENIR DE VILLEJUST","2-2","DELOITTE FC","Dimanche 28/09 au Stade de la Pourpadière à 13h00"]
[null,"LE TIR ASCBB A","1-1","AC JUNIA PARIS A","Dimanche 28/09 au Stade Ile de Puteaux à 13h30"]
[null,"PHOENIX","1-5","EFCAP","Dimanche 28/09 au Stade Jules Noel à 15h00"]
[null,"HOVERLA  ","5-0","ASSOCIATION N.A.S.","Dimanche 28/09 au Stade Maryse Hilsz (Terrain n°2) à 09h00"]
[null,"NEVER ELEVEN FC ","6-2","THE BOWLER","Dimanche 28/09 au Parc du Tremblay (Terrain n°6) à 13h00"]
[null,"PANAM PIRATES FC","2-1","LE TIR ASCBB B","Dimanche 28/09 au Parc du Tremblay (Terrain n°6) à 15h00"]
[null,"US COSA","9-0","RENAISANCE CLUB PARIS ","Dimanche 28/09 au Parc de la Courneuve (Terrain n°2) à 15h00"]
[null,"RC BALARD","5-2","CHARENTON FC","Dimanche 28/09 au Stade Suzanne Lenglen (Terrain n°2) à 09h00"]
[null,"AZTECAS PARIS A ","2-2","NDL BON CONSEIL","Dimanche 28/09 au Stade Paul Faber à 11h00"]
[null,"FC INTERNATIONALE 75 ","2-3","PONTS ANCIENS FOOTEUX A","Dimanche 28/09 au Stade Jules Noel à 10h30"]
[null,"FC GADAA","2-3","TOHO FC","Dimanche 28/09 au Stade de la Tour aux Parachutes à 13h00"]
["3ème journée -   Samedi 04/10 au dimanche 05/10"]
[]
[null,"LE TIR ASCBB B ","2-6","US COSA","Samedi 04/10 au Stade Ile de Puteaux à 19h00"]
[null,"PARIS RED CROC'DILS ","1-8","LE TIR ASCBB A ","Samedi 04/10 au Stade Suzanne Lenglen terrain n°2 à 11h00"]
[null,"LE TIR ASCBB ( FC BATIGNOLLAIS)","4-3","THE BOWLER","Dimanche 05/10 au Stade Ile de Puteaux à 13h30"]
[null,"EFCAP","5-2","VILLE 190","Dimanche 05/10 au Stade de la Tour aux Parachutes à 9h"]
[null,"ATHLETIC RUN 974","2-3","BDM FC B","Dimanche 05/10 au Parc du Tremblay (Terrain n°6) à 13h00"]
[null,"ASIP FC ","1-5","FANTASISTA A","Dimanche 05/10 au Parc du Tremblay (Terrain n°6) à 15h00"]
[null,"FC SAVIGNAC","2-2","FC LAWYERS","Dimanche 05/10 au Stade Maryse Hilsz (Terrain n°1)à 09h00"]
[null,"FC PELOTA","4-3","BM BOCK FC","Dimanche 05/10 au Stade de la Tour aux Parachutes à 13h"]
[null,"FRIENDS FUN FC A ","3-3","DELOITTE FC","Dimanche 05/10 au Stade Suzanne Lenglen (Terrain n°1) à 11h00"]
[null,"TACTIC FC ","2-4","AVENIR DE VILLEJUST","Dimanche 05/10 au Stade Ile de Puteaux à 09h30"]
[null,"AC JUNIA PARIS A ","7-0","PHOENIX","Dimanche 05/10 au Stade Suzanne Lenglen (Terrain n°2) à 09h00"]
[null,"FC IFLISSEN A ","1-4","HOVERLA ","Dimanche 05/10 au Parc de Choisy Sud (Terrain n°21) à 13h00"]
[null,"NEVER ELEVEN FC","7-1","ASSOCIATION N.A.S.","Dimanche 05/10 au Stade Paul Faber à 09h00"]
[null,"PANAM PIRATES FC","3-1","RC BALARD","Dimanche 05/10 au Parc de Choisy Nord (Terrain n°2) à 13h00"]
[null,"RENAISANCE CLUB PARIS","0-1","CHARENTON FC","Dimanche 05/10 au Parc du Tremblay (Terrain n°8) à 09h30"]
[null,"NDL BON CONSEIL","2-1","PONTS ANCIENS FOOTEUX A","Dimanche 05/10 au Stade Jules Noel à 10h30"]
[null,"AZTECAS PARIS A","4-1","TOHO FC","Dimanche 05/10 au Stade Paul Faber à 11h00"]
[null,"FC INTERNATIONALE 75","1-4","FC GADAA","Dimanche 05/10 au Parc du Tremblay (Terrain n°9) à 15h00"]
["4ème journée -   Samedi 25/10 au dimanche 26/10 "]
[]
[null,"PARIS RED CROC'DILS","1-8","AC JUNIA PARIS A","Samedi 25/10 au Stade Suzanne Lenglen (Terrain n°2) à 11h00"]
[null,"DELOITTE FC","12-0","FC PELOTA","Samedi 25/10 au Parc du Tremblay (Terrain n°9) à 09h30"]
[null,"LE TIR ASCBB ( FC BATIGNOLLAIS)","3-0F","ASSOCIATION N.A.S.","Samedi 25/10 au Stade Ile de Puteaux à 11h00"]
[null,"BDM FC B","2-2","FANTASISTA A","Dimanche 26/10 au Parc du Tremblay (Terrain n°6) à 13h00"]
[null,"ATHLETIC RUN 974","1-2","FC LAWYERS","Dimanche 26/10 au Parc du Tremblay (Terrain n°6) à 15h00"]
[null,"ASIP FC ","2-0","FC SAVIGNAC","Dimanche 26/10 au Parc de Choisy Nord (Terrain n°2) à 13h00"]
[null,"BM BOCK FC ","1-4","AVENIR DE VILLEJUST","Dimanche 26/10 au Parc du Tremblay (Terrain n°8) à 09h30"]
[null,"FRIENDS FUN FC A ","6-0","TACTIC FC","Dimanche 26/10 au Stade Suzanne Lenglen (Terrain n°1) à 11h00"]
[null,"PHOENIX","4-6","VILLE 190","Dimanche 26/10 au Stade Jules Noel à 15h00"]
[null,"LE TIR ASCBB A ","2-5","EFCAP","Dimanche 26/10 au Stade Ile de Puteaux à 13h30"]
[null,"THE BOWLER","0-8","FC IFLISSEN A","Dimanche 26/10 au Stade Ile de Puteaux à 09h30"]
[null,"NEVER ELEVEN FC","5-5","HOVERLA ","Dimanche 26/10 au Stade Maryse Hilsz (Terrain n°1) à 09h00"]
[null,"RC BALARD","3-1","LE TIR ASCBB B","Dimanche 26/10 au Stade Suzanne Lenglen (Terrain n°2) à 09h00"]
[null,"US COSA","2-2","CHARENTON FC","Dimanche 26/10 au Parc de la Courneuve (Terrain n°2) à 15h00"]
[null,"PANAM PIRATES FC","4-2","RENAISANCE CLUB PARIS","Dimanche 26/10 au Parc du Tremblay (Terrain n°9) à 15h00"]
[null,"TOHO FC","0-3","NDL BON CONSEIL","Dimanche 26/10 au Stade Jules Noel à 10h30"]
[null,"PONTS ANCIENS FOOTEUX A ","3-0","FC GADAA","Dimanche 26/10 au Stade Paul Faber à 09h00"]
[null,"AZTECAS PARIS A","7-1","FC INTERNATIONALE 75","Dimanche 26/10 au Stade de la Tour aux Parachutes à 13h00"]
["5ème journée -   Samedi 14/02 au dimanche 15/02"]
[]
[null,"LE TIR ASCBB B ",null,"CHARENTON FC","Samedi 14/02 au Stade Ile de Puteaux à 19h00"]
[null,"PARIS RED CROC'DILS ",null,"EFCAP","Samedi 14/02 au Stade Suzanne Lenglen terrain n°2 à 11h00"]
[null,"NDL BON CONSEIL ",null,"FC GADAA","Dimanche 15/02 au Stade de la Tour aux Parachutes à 13h"]
[null,"BDM FC B",null,"FC LAWYERS","Dimanche 15/02 au Parc du Tremblay (Terrain n°6) à 13h00"]
[null,"FANTASISTA A",null,"FC SAVIGNAC","Dimanche 15/02 au Stade Suzanne Lenglen (Terrain n°1) à 11h00"]
[null,"ATHLETIC RUN 974",null,"ASIP FC ","Dimanche 15/02 au Parc de Choisy Sud (Terrain n°21) à 13h00"]
[null,"AVENIR DE VILLEJUST",null,"FC PELOTA","Dimanche 15/02 au Stade de la Pourpadière à 12h00"]
[null,"TACTIC FC",null,"DELOITTE FC","Dimanche 15/02 au Stade Ile de Puteaux à 09h30"]
[null,"BM BOCK FC ",null,"FRIENDS FUN FC A","Dimanche 15/02 au Stade de la Tour aux Parachutes à 09h00"]
[null,"AC JUNIA PARIS A ",null,"VILLE 190","Dimanche 15/02 au Stade Suzanne Lenglen (Terrain n°2) à 09h00"]
[null,"LE TIR ASCBB A",null,"PHOENIX","Dimanche 15/02 au au Stade Ile de Puteaux à 13h30"]
[null,"FC IFLISSEN A ",null,"NEVER ELEVEN FC","Dimanche 15/02 au Parc de Choisy Nord (Terrain n°2) à 13h00"]
[null,"PONTS ANCIENS FOOTEUX A ",null,"AZTECAS PARIS A","Dimanche 15/02 au Stade Paul Faber à 11h00"]
[null,"HOVERLA  ",null,"LE TIR ASCBB ( FC BATIGNOLLAIS)","Dimanche 15/02 au Stade Paul Faber à 09h00"]
[null,"RENAISANCE CLUB PARIS",null,"RC BALARD ","Dimanche 15/02 au Parc du Tremblay (Terrain n°8) à 09h30"]
[null,"US COSA ",null,"PANAM PIRATES FC ","Dimanche 15/02 au Parc du Tremblay (Terrain n°9) à 15h00"]
[null,"TOHO FC",null,"FC INTERNATIONALE 75","Dimanche 15/02 au Parc du Tremblay (Terrain n°6) à 15h00"]
[null,"THE BOWLER",null,"ASSOCIATION N.A.S.","Dimanche 15/02 au Stade Jules Noel à 10h30"]
["Tour de cadrage  - Samedi 21/02 au dimanche 28/02"]
[]
[91.0,"3ème poule F",null,"3ème poule D"]
[92.0,"3ème poule A",null,"3ème poule C"]
["1/8 de finale -  Samedi 14/03 au dimanche 15/03"]
[]
[93.0,"1er poule A ",null,"Vainqueur n°91"]
[94.0,"1er poule B",null,"3ème poule E"]
[95.0,"1er poule C",null,"2ème poule E"]
[96.0,"1er poule D",null,"Vainqueur n°92"]
[97.0,"1er poule E",null,"3ème poule B"]
[98.0,"1er poule F",null,"2ème poule B "]
[99.0,"2ème poule A ",null,"2ème poule F"]
[100.0,"2ème poule C",null,"2ème poule D"]
["1/4 de finale -  Samedi 11/04 au dimanche 12/04"]
[]
[101.0,"Vainqueur n°93",null,"Vainqueur n°100"]
[102.0,"Vainqueur n°94",null,"Vainqueur n°96"]
[103.0,"Vainqueur n°95",null,"Vainqueur n°98"]
[104.0,"Vainqueur n°97",null,"Vainqueur n°99"]
["Demie finale - Samedi 18/04 au dimanche 19/04"]
[]
[105.0,"Vainqueur n°101",null,"Vainqueur n°103"]
[106.0,"Vainqueur n°102",null,"Vainqueur n°104"]
["Finale"]
[]
[107.0,"Vainqueur n°105",null,"Vainqueur n°106","A définir"]